bitfinex-derivatives/quotes_BTCF0:USTF0_20220103
["timestamp","ask_amount","ask_price","bid_price","bid_amount"]
[1641198876087,0.09043448,47012.0,47011.0,0.55174707]
[1641198877392,0.09043448,47012.0,47011.0,0.36174707]
[1641198877992,0.09043448,47012.0,47011.0,0.55174707]
[1641198879391,0.09043448,47012.0,47011.0,0.36174707]
[1641198880192,0.09043448,47012.0,47011.0,0.54674707]
[1641198880594,1.53705446,47012.0,47011.0,0.185]
[1641198881394,1.53705446,47012.0,47010.0,0.36174707]
[1641198881994,1.53705446,47012.0,47010.0,0.54974707]
[1641198882994,0.09043448,47011.0,47010.0,0.54974707]
[1641198883996,0.09043448,47011.0,47010.0,0.55174707]
[1641198885397,0.09043448,47011.0,47010.0,0.36174707]
[1641198885997,0.09043448,47011.0,47010.0,0.55174707]
[1641198887200,0.23077015,47011.0,47010.0,0.55174707]
[1641198887399,0.23077015,47011.0,47010.0,0.36174707]
[1641198887999,0.23077015,47011.0,47010.0,0.55174707]
[1641198889401,0.23077015,47011.0,47010.0,0.64006707]
[1641198890001,0.23077015,47011.0,47010.0,0.83006707]
[1641198890204,0.09043448,47011.0,47010.0,0.88075499]
[1641198891203,0.23077015,47011.0,47010.0,0.88075499]
[1641198891405,0.14033567,47011.0,47010.0,0.69075499]
[1641198892106,0.14033567,47011.0,47010.0,0.88175499]
[1641198892305,0.23077015,47011.0,47010.0,0.27932]
[1641198893406,0.23077015,47011.0,47010.0,0.08832]
[1641198894006,0.23077015,47011.0,47010.0,0.27832]
[1641198895407,0.23077015,47011.0,47010.0,0.08832]
[1641198895607,0.23077015,47011.0,47009.0,0.60243499]
[1641198896010,0.23077015,47011.0,47010.0,0.19]
[1641198896607,0.14033567,47011.0,47010.0,0.19]
[1641198897408,0.14033567,47011.0,47009.0,0.60243499]
[1641198897610,1.44661998,47013.0,47009.0,0.60243499]
[1641198898009,0.14033567,47011.0,47009.0,0.79343499]
[1641198899412,0.14033567,47011.0,47009.0,0.60243499]
[1641198900213,0.14033567,47011.0,47009.0,0.79243499]
[1641198901418,0.14033567,47011.0,47009.0,0.60243499]
[1641198902114,0.14033567,47011.0,47009.0,0.79243499]
[1641198903015,0.14033567,47011.0,47010.0,0.36170524]
[1641198903618,0.14033567,47011.0,47009.0,0.60243499]
[1641198904020,0.14033567,47011.0,47010.0,0.191]
[1641198905429,0.14033567,47011.0,47009.0,0.60243499]
[1641198906029,0.14033567,47011.0,47009.0,0.79243499]
[1641198907429,0.14033567,47011.0,47009.0,0.60243499]
[1641198908131,0.14033567,47011.0,47009.0,0.79343499]
[1641198908431,0.14033567,47011.0,47010.0,0.36167324]
[1641198910331,0.14033567,47011.0,47010.0,0.55267324]
[1641198911438,0.14033567,47011.0,47010.0,0.36167324]
[1641198911742,0.23076496,47011.0,47009.0,0.36167324]
[1641198912140,0.23076496,47011.0,47010.0,0.19]
[1641198912640,0.14033567,47011.0,47010.0,0.19]
[1641198913541,0.14033567,47011.0,47009.0,0.36167324]
[1641198914141,0.14033567,47011.0,47009.0,0.55167324]
[1641198915145,1.58695565,47011.0,47009.0,0.19]
[1641198916246,1.58695565,47011.0,47009.0,0.38]
[1641198917148,0.14033567,47011.0,47009.0,0.74167324]
[1641198917547,0.14033567,47011.0,47009.0,0.36167324]
[1641198918248,0.14033567,47011.0,47009.0,0.55167324]
[1641198918849,1.58695565,47011.0,47009.0,0.19]
[1641198919552,1.58695565,47011.0,47008.0,0.45382324]
[1641198919750,1.58695565,47011.0,47009.0,0.36167324]
[1641198919751,0.14033567,47011.0,47009.0,0.36167324]
[1641198921954,0.14033567,47011.0,47008.0,0.64382324]
[1641198922155,0.14033567,47011.0,47009.0,0.189]
[1641198923654,0.14033567,47011.0,47008.0,0.36167324]
[1641198924256,0.14033567,47011.0,47008.0,0.55067324]
[1641198925654,0.14033567,47011.0,47008.0,0.36167324]
[1641198926059,0.14033567,47011.0,47007.0,0.36167324]
[1641198926255,0.14033567,47011.0,47008.0,0.19]
[1641198926756,0.14033567,47011.0,47008.0,0.55167324]
[1641198927656,0.14033567,47011.0,47008.0,0.36167324]
[1641198928258,0.09043645,47010.0,47008.0,0.55167324]
[1641198929661,0.09043645,47010.0,47008.0,0.36167324]
[1641198930158,0.09043645,47010.0,47008.0,0.55567324]
[1641198930358,0.09043645,47010.0,47009.0,0.36167324]
[1641198932062,0.09043645,47010.0,47008.0,0.36167324]
[1641198932263,0.09043645,47010.0,47009.0,0.193]
[1641198935564,0.09043645,47010.0,47008.0,0.36167324]
[1641198936162,0.09043645,47010.0,47008.0,0.55467324]
[1641198937565,0.09043645,47010.0,47008.0,0.36167324]
[1641198938265,0.09043645,47010.0,47008.0,0.55467324]
[1641198939669,0.09043645,47010.0,47008.0,0.36167324]
[1641198940270,0.09043645,47010.0,47008.0,0.55367324]
[1641198942369,0.09043645,47010.0,47008.0,0.55467324]
[1641198943672,0.09043645,47010.0,47008.0,0.36167324]
[1641198944170,0.09043645,47010.0,47008.0,0.55467324]
[1641198945774,0.09043645,47010.0,47008.0,0.36167324]
[1641198946172,0.09043645,47010.0,47008.0,0.55167324]
[1641198947674,0.09043645,47010.0,47008.0,0.36167324]
[1641198948281,0.09043645,47010.0,47008.0,0.55167324]
[1641198949178,0.09043645,47010.0,47008.0,0.19]
[1641198949681,0.09043645,47010.0,47007.0,0.36167324]
[1641198950080,0.09043645,47010.0,47008.0,0.36167324]
[1641198952194,0.09043645,47010.0,47008.0,0.55067324]
[1641198953601,0.09043645,47010.0,47008.0,0.36167324]
[1641198953799,0.09043645,47010.0,47007.0,0.36167324]
[1641198954197,0.09043645,47010.0,47008.0,0.189]
[1641198954598,0.09043645,47010.0,47008.0,0.55067324]
[1641198955697,0.09043645,47010.0,47008.0,0.36167324]
[1641198956201,0.09043645,47010.0,47009.0,0.36167324]
[1641198958197,0.09043645,47010.0,47009.0,0.55167324]
[1641198959600,0.09043645,47010.0,47009.0,0.36167324]
[1641198960203,0.09043645,47010.0,47009.0,0.55167324]
[1641198960403,1.53705643,47011.0,47009.0,0.55167324]
[1641198961204,0.09043645,47010.0,47009.0,0.19]
[1641198962207,0.09043645,47010.0,47009.0,0.189]
[1641198963408,0.09043645,47010.0,47009.0,0.55067324]
[1641198963607,0.09043645,47010.0,47009.0,0.36167324]
[1641198964208,0.09043645,47010.0,47009.0,0.55467324]
[1641198964612,0.09043645,47011.0,47009.0,0.55467324]
[1641198965211,0.09043645,47011.0,47009.0,0.193]
[1641198965612,0.09043645,47011.0,47009.0,0.60243499]
[1641198966211,0.09043645,47011.0,47009.0,0.79543499]
[1641198967421,0.09043645,47011.0,47010.0,0.60243499]
[1641198968221,0.09043645,47011.0,47010.0,0.79443499]
[1641198969624,0.09043645,47011.0,47010.0,0.60243499]
[1641198969823,0.09043645,47011.0,47010.0,0.66680499]
[1641198970223,0.09043645,47011.0,47010.0,0.85980499]
[1641198970725,0.09043645,47011.0,47010.0,0.25737]
[1641198971524,0.09043645,47011.0,47010.0,0.06437]
[1641198972326,0.09043645,47011.0,47010.0,0.25737]
[1641198972526,0.09043645,47011.0,47010.0,0.86032651]
[1641198973625,0.09043645,47011.0,47010.0,0.66732651]
[1641198974433,0.09043645,47011.0,47010.0,0.86032651]
[1641198975226,0.09043645,47011.0,47010.0,0.25737]
[1641198975626,0.09043645,47011.0,47010.0,0.06437]
[1641198975828,0.09043645,47012.0,47010.0,0.60295802]
[1641198976027,0.09043645,47012.0,47010.0,0.68833802]
[1641198976427,0.09043645,47012.0,47010.0,0.88033802]
[1641198977728,0.09043645,47012.0,47010.0,0.68833802]
[1641198978345,0.09043645,47012.0,47010.0,0.88033802]
[1641198978528,0.09043645,47012.0,47011.0,0.60295802]
[1641198979328,0.09043645,47012.0,47010.0,0.88033802]
[1641198979732,0.09043645,47012.0,47010.0,0.68833802]
[1641198980130,0.09043645,47012.0,47011.0,0.60295802]
[1641198982333,0.09043645,47012.0,47011.0,0.79495802]
[1641198983632,0.09043645,47012.0,47011.0,0.36179623]
[1641198984332,0.09043645,47012.0,47011.0,0.54679623]
[1641198985333,1.53705643,47012.0,47011.0,0.185]
[1641198985634,1.53705643,47012.0,47010.0,0.36179623]
[1641198986446,1.53705643,47012.0,47010.0,0.55379623]
[1641198986647,0.09043645,47011.0,47010.0,0.192]
[1641198987351,0.09043645,47012.0,47010.0,0.192]
[1641198987751,0.09043645,47012.0,47009.0,0.60295802]
[1641198988452,0.09043645,47012.0,47009.0,0.79295802]
[1641198989649,0.09043645,47012.0,47009.0,0.60295802]
[1641198990452,0.09043645,47012.0,47009.0,0.79295802]
[1641198992053,0.09043645,47012.0,47009.0,0.60295802]
[1641198992256,0.20228112,47010.0,47008.0,0.84340899]
[1641198992456,1.31628112,47010.0,47008.0,0.36800899]
[1641198992657,1.31628112,47010.0,47002.0,1.32550955]
[1641198992658,0.15950223,47008.0,47002.0,1.01230251]
[1641198992855,0.18,47003.0,47002.0,1.01230251]
[1641198993058,1.64316134,47003.0,47002.0,1.01230251]
[1641198993256,1.66444828,47003.0,47002.0,1.01230251]
[1641198993657,1.66444828,47003.0,46998.0,0.8442912]
[1641198993956,0.181,46999.0,46998.0,0.8442912]
[1641198994557,0.181,46999.0,46998.0,0.62399108]
[1641198994958,0.32133567,46999.0,46998.0,0.62399108]
[1641198995362,0.34262438,46999.0,46982.0,1.56651706]
[1641198995661,0.18,46992.0,46979.0,0.14033567]
[1641198995860,0.24423,46992.0,46979.0,0.14033567]
[1641198996261,0.24423,46992.0,46980.0,0.01206458]
[1641198996462,0.18,46990.0,46980.0,0.01206458]
[1641198996761,0.18,46986.0,46980.0,0.01206458]
[1641198996961,0.14033567,46985.0,46980.0,0.01206458]
[1641198997163,3.19746244,46981.0,46980.0,0.01206458]
[1641198997362,3.28786244,46981.0,46980.0,0.01206458]
[1641198997963,3.28786244,46981.0,46979.0,0.14033567]
[1641198998364,3.47586244,46981.0,46979.0,0.14033567]
[1641198998763,3.56629889,46981.0,46979.0,0.14033567]
[1641198999364,0.09043645,46980.0,46979.0,0.14033567]
[1641199000063,0.09043645,46980.0,46979.0,0.15240068]
[1641199000569,0.09043645,46980.0,46979.0,0.01206501]
[1641199000570,0.52334645,46980.0,46979.0,0.01206501]
[1641199000764,0.54464228,46980.0,46979.0,0.01206501]
[1641199000965,0.68497795,46980.0,46975.0,1.22117441]
[1641199001163,0.18,46976.0,46975.0,1.22117441]
[1641199001964,0.18,46976.0,46965.0,1.56651706]
[1641199002164,0.18,46971.0,46965.0,1.56651706]
[1641199002568,0.18,46971.0,46969.0,1.20680951]
[1641199002965,0.32643824,46971.0,46969.0,1.20680951]
[1641199003566,0.41687469,46971.0,46969.0,1.20680951]
[1641199003866,0.41687469,46971.0,46969.0,0.84481113]
[1641199004465,0.60287469,46971.0,46969.0,0.84481113]
[1641199004867,3.66282073,46971.0,46969.0,0.84481113]
[1641199005265,3.48282073,46971.0,46969.0,0.84481113]
[1641199005668,3.29682073,46971.0,46969.0,0.84481113]
[1641199006469,3.48282073,46971.0,46970.0,0.38206189]
[1641199006666,0.42287469,46971.0,46970.0,0.56206189]
[1641199006870,0.14033567,46980.0,46970.0,0.58335192]
[1641199007066,0.14033567,46980.0,46974.0,0.14033567]
[1641199007468,0.02129236,46984.0,46974.0,0.14033567]
[1641199008270,0.00610194,46983.0,46974.0,0.14033567]
[1641199008471,0.00610194,46983.0,46974.0,0.32233567]
[1641199009173,0.00610194,46983.0,46976.0,0.36202374]
[1641199010472,0.18410194,46983.0,46976.0,0.54402374]
[1641199010874,0.00610194,46982.0,46977.0,0.36202374]
[1641199011076,0.18610194,46982.0,46977.0,0.36202374]
[1641199011676,0.00610194,46981.0,46977.0,0.36202374]
[1641199011877,0.02739548,46981.0,46977.0,0.36202374]
[1641199012277,0.00610194,46980.0,46975.0,0.36202374]
[1641199012477,0.00610194,46980.0,46977.0,0.169]
[1641199013779,0.18610194,46980.0,46975.0,0.36202374]
[1641199014278,0.00610194,46979.0,46975.0,0.36202374]
[1641199014479,0.00610194,46979.0,46975.0,0.54202374]
[1641199015080,0.00610194,46978.0,46975.0,0.18]
[1641199015378,0.00610194,46977.0,46975.0,0.18]
[1641199015782,0.00610194,46977.0,46975.0,0.36202374]
[1641199015980,0.00610194,46976.0,46975.0,0.36202374]
[1641199016380,0.00610194,46976.0,46975.0,0.54202374]
[1641199017782,0.00610194,46976.0,46975.0,0.36202374]
[1641199017982,0.00610194,46976.0,46974.0,0.14033567]
[1641199017983,0.00610194,46976.0,46974.0,0.50235941]
[1641199018384,0.00610194,46975.0,46974.0,0.68535941]
[1641199019283,0.00610194,46975.0,46974.0,0.32333567]
[1641199019883,0.00610194,46975.0,46974.0,0.14033567]
[1641199020484,0.18910194,46975.0,46974.0,0.32533567]
[1641199020986,0.18910194,46975.0,46974.0,0.68735941]
[1641199021887,0.00610194,46975.0,46974.0,0.50235941]
[1641199022485,0.2796169,46975.0,46974.0,0.68735941]
[1641199024689,0.2796169,46975.0,46974.0,0.76974941]
[1641199024990,0.30091375,46975.0,46974.0,0.62941374]
[1641199025188,0.3577969,46975.0,46974.0,0.62941374]
[1641199025788,0.1747969,46975.0,46974.0,0.44441374]
[1641199025990,0.1747969,46975.0,46974.0,0.36202374]
[1641199026191,0.02129437,46980.0,46974.0,0.45042774]
[1641199026390,0.003,46975.0,46974.0,0.63942774]
[1641199027190,0.003,46975.0,46974.0,0.77976341]
[1641199027490,0.003,46975.0,46974.0,0.78076341]
[1641199027691,0.02129437,46980.0,46974.0,0.22973967]
[1641199027892,0.02129437,46980.0,46974.0,0.22873967]
[1641199028294,1.43448183,46978.0,46975.0,0.36205702]
[1641199028492,1.45577682,46978.0,46975.0,0.36205702]
[1641199029292,1.43448183,46977.0,46975.0,0.36205702]
[1641199030494,0.171,46977.0,46976.0,0.36205702]
[1641199031896,1.43448183,46979.0,46976.0,0.36205702]
[1641199032396,1.58048183,46979.0,46977.0,0.36205702]
[1641199033298,0.46731161,46978.0,46977.0,0.36205702]
[1641199034498,0.46731161,46978.0,46974.0,0.84481113]
[1641199034499,0.65631161,46978.0,46972.0,0.36205702]
[1641199035500,1.43836006,46975.0,46972.0,0.36205702]
[1641199036406,1.63336006,46975.0,46972.0,0.36205702]
[1641199037207,1.63336006,46975.0,46973.0,0.36205702]
[1641199037907,1.43836006,46975.0,46973.0,0.36205702]
[1641199038506,1.63136006,46975.0,46973.0,0.36205702]
[1641199038707,1.43836006,46974.0,46972.0,0.36205702]
[1641199040209,1.43836006,46974.0,46973.0,0.06]
[1641199040407,1.43836006,46974.0,46973.0,0.18]
[1641199040608,1.43836006,46976.0,46973.0,0.18]
[1641199042007,1.52888509,46977.0,46973.0,0.18]
[1641199042221,1.52888509,46977.0,46974.0,0.36209698]
[1641199042421,0.146,46976.0,46974.0,0.36209698]
[1641199042822,0.14033567,46978.0,46975.0,0.36309698]
[1641199043024,0.14033567,46986.0,46977.0,0.181]
[1641199043224,0.14033567,46986.0,46980.0,0.18]
[1641199044126,0.14033567,46986.0,46977.0,0.08659]
[1641199044427,0.14033567,46986.0,46980.0,0.194]
[1641199045125,0.18,46988.0,46980.0,0.55604357]
[1641199045325,0.74595078,46991.0,46980.0,0.55604357]
[1641199045725,0.74595078,46991.0,46980.0,0.36204357]
[1641199046125,0.74595078,46991.0,46979.0,0.96541381]
[1641199046326,0.74595078,46991.0,46979.0,0.36204357]
[1641199046625,0.74595078,46991.0,46980.0,0.193]
[1641199047727,0.74595078,46991.0,46979.0,0.36204357]
[1641199048126,1.43859242,46982.0,46979.0,0.36204357]
[1641199048525,1.43859242,46982.0,46979.0,0.55604357]
[1641199049827,1.43859242,46982.0,46979.0,0.36204357]
[1641199050229,1.43859242,46982.0,46980.0,0.36204357]
[1641199052534,1.43859242,46982.0,46980.0,0.55604357]
[1641199053636,0.27286929,46987.0,46980.0,0.194]
[1641199053837,0.27286929,46987.0,46978.0,0.69876024]
[1641199054037,0.27286929,46987.0,46978.0,0.09539]
[1641199054237,0.27286929,46987.0,46976.0,0.14033567]
[1641199054436,0.27286929,46987.0,46978.0,0.194]
[1641199055037,1.71146171,46987.0,46978.0,0.194]
[1641199055837,1.71146171,46987.0,46976.0,0.20835567]
[1641199056239,1.65751519,46987.0,46976.0,0.20835567]
[1641199056439,1.65751519,46987.0,46976.0,0.40235567]
[1641199056639,1.85880624,46987.0,46976.0,0.40235567]
[1641199056939,0.83734618,46978.0,46976.0,0.40235567]
[1641199057740,0.83734618,46978.0,46976.0,0.20835567]
[1641199058440,0.83734618,46978.0,46976.0,0.40335567]
[1641199060040,0.83734618,46978.0,46976.0,0.20835567]
[1641199060241,0.83734618,46978.0,46976.0,0.14033567]
[1641199060439,0.83734618,46978.0,46976.0,0.33533567]
[1641199061841,0.83734618,46978.0,46976.0,0.14033567]
[1641199062444,0.83734618,46978.0,46976.0,0.33633567]
[1641199062642,0.83734618,46978.0,46976.0,0.41030567]
[1641199063848,0.83734618,46978.0,46976.0,0.21430567]
[1641199064048,0.83734618,46978.0,46976.0,0.14033567]
[1641199064444,0.83734618,46978.0,46976.0,0.33633567]
[1641199065643,0.83734618,46978.0,46976.0,0.14033567]
[1641199066444,0.83734618,46978.0,46976.0,0.33633567]
[1641199067445,0.83734618,46978.0,46976.0,0.196]
[1641199067846,0.83734618,46978.0,46975.0,0.009794]
[1641199068044,0.83734618,46978.0,46977.0,0.14033567]
[1641199069447,0.09051508,46984.0,46977.0,0.14033567]
[1641199070547,0.09051508,46984.0,46977.0,0.33433567]
[1641199071547,0.08897365,46983.0,46977.0,0.33433567]
[1641199071748,0.08897365,46983.0,46977.0,0.14033567]
[1641199072152,0.08897365,46983.0,46977.0,0.32033567]
[1641199072548,0.08897365,46983.0,46977.0,0.51533567]
[1641199072850,0.8385502,46978.0,46977.0,0.33533567]
[1641199073053,0.8385502,46978.0,46977.0,0.51533567]
[1641199073847,0.8385502,46978.0,46977.0,0.32033567]
[1641199074450,0.8385502,46978.0,46977.0,0.33633567]
[1641199074649,0.8385502,46978.0,46977.0,0.51633567]
[1641199074849,0.8385502,46978.0,46977.0,0.33633567]
[1641199075854,0.8385502,46978.0,46977.0,0.14033567]
[1641199076449,0.8385502,46978.0,46977.0,0.51633567]
[1641199076649,0.8385502,46978.0,46977.0,0.33633567]
[1641199078353,0.8385502,46978.0,46977.0,0.14033567]
[1641199078553,0.8385502,46978.0,46977.0,0.33633567]
[1641199079755,0.8385502,46978.0,46977.0,0.14033567]
[1641199080459,0.8385502,46978.0,46977.0,0.33733567]
[1641199080858,0.8385502,46978.0,46977.0,0.51733567]
[1641199081057,0.09051508,46981.0,46977.0,0.51733567]
[1641199081461,0.09051508,46981.0,46979.0,0.18]
[1641199081661,1.57892809,46987.0,46977.0,0.33733567]
[1641199081662,1.43859242,46986.0,46977.0,0.33733567]
[1641199081960,1.43859242,46986.0,46979.0,0.18]
[1641199082160,1.43859242,46986.0,46977.0,0.14033567]
[1641199082361,2.00458291,46987.0,46977.0,0.14033567]
[1641199082561,2.00458291,46987.0,46979.0,0.194]
[1641199083375,1.43859242,46983.0,46979.0,0.73604357]
[1641199083776,1.43859242,46983.0,46979.0,0.54204357]
[1641199084577,1.43859242,46983.0,46979.0,0.73704357]
[1641199085478,1.43859242,46983.0,46979.0,0.55704357]
[1641199085877,1.43859242,46983.0,46979.0,0.54204357]
[1641199086479,1.43859242,46983.0,46979.0,0.73704357]
[1641199086878,1.43859242,46983.0,46979.0,0.55704357]
[1641199087579,1.43859242,46983.0,46979.0,0.73704357]
[1641199087780,1.43859242,46983.0,46979.0,0.54204357]
[1641199088479,1.43859242,46983.0,46979.0,0.73704357]
[1641199089280,1.43859242,46984.0,46980.0,0.36204357]
[1641199090382,1.43859242,46984.0,46980.0,0.55604357]
[1641199091782,1.43859242,46983.0,46979.0,0.36204357]
[1641199092382,1.61859242,46983.0,46979.0,0.55704357]
[1641199092783,1.43859242,46982.0,46979.0,0.195]
[1641199093782,1.43859242,46982.0,46978.0,0.36204357]
[1641199094183,1.43859242,46980.0,46977.0,0.14033567]
[1641199094384,1.43859242,46980.0,46978.0,0.194]
[1641199095886,1.43859242,46980.0,46977.0,0.14033567]
[1641199096384,1.43859242,46980.0,46977.0,0.33433567]
[1641199097785,1.43859242,46980.0,46977.0,0.14033567]
[1641199098391,1.43859242,46980.0,46977.0,0.33433567]
[1641199099088,1.43859242,46979.0,46977.0,0.33433567]
[1641199099888,1.43859242,46979.0,46977.0,0.14033567]
[1641199100389,1.43859242,46979.0,46977.0,0.33433567]
[1641199101994,1.43859242,46979.0,46977.0,0.50237924]
[1641199102393,1.43859242,46979.0,46977.0,0.69637924]
[1641199103394,1.43859242,46979.0,46977.0,0.33433567]
[1641199103697,1.43859242,46979.0,46977.0,0.14033567]
[1641199104096,1.43859242,46979.0,46977.0,0.50237924]
[1641199104397,1.43859242,46979.0,46977.0,0.69737924]
[1641199104595,1.43859242,46979.0,46977.0,0.78461924]
[1641199105000,1.43859242,46980.0,46978.0,0.36204357]
[1641199105798,1.43859242,46979.0,46977.0,0.58961924]
[1641199106598,0.09050972,46978.0,46977.0,0.78361924]
[1641199107900,0.09050972,46978.0,46977.0,0.58961924]
[1641199108502,0.09050972,46978.0,46977.0,0.78361924]
[1641199110002,0.09050972,46978.0,46977.0,0.58961924]
[1641199110604,1.52910214,46979.0,46977.0,0.78361924]
[1641199111307,0.09050972,46978.0,46977.0,0.78361924]
[1641199111909,0.09050972,46978.0,46977.0,0.58961924]
[1641199112509,0.09050972,46978.0,46977.0,0.78361924]
[1641199113811,0.09050972,46978.0,46977.0,0.58961924]
[1641199114014,0.09050972,46978.0,46977.0,0.22757567]
[1641199114511,0.09050972,46978.0,46977.0,0.42157567]
[1641199115112,0.09050972,46978.0,46977.0,0.78361924]
[1641199116312,1.52910214,46979.0,46977.0,0.22757567]
[1641199116514,1.52910214,46979.0,46977.0,0.42157567]
[1641199117130,0.09050972,46978.0,46977.0,0.42157567]
[1641199117728,0.09050972,46978.0,46977.0,0.22757567]
[1641199117929,1.52910214,46978.0,46977.0,0.22757567]
[1641199118229,1.52910214,46978.0,46977.0,0.14033567]
[1641199118630,1.52910214,46978.0,46977.0,0.33433567]
[1641199119033,0.09050972,46978.0,46977.0,0.33433567]
[1641199119531,0.09050972,46980.0,46977.0,0.33433567]
[1641199119929,0.09050972,46980.0,46977.0,0.14033567]
[1641199120532,0.09050972,46980.0,46977.0,0.33433567]
[1641199122335,0.09050972,46980.0,46977.0,0.194]
[1641199122935,0.09050972,46980.0,46979.0,0.14033567]
[1641199124638,0.14033567,46991.0,46979.0,0.14033567]
[1641199124639,0.42563294,46989.0,46980.0,0.009794]
[1641199124836,0.93377172,47000.0,46988.0,0.32033567]
[1641199125037,0.79343605,47000.0,46989.0,0.18]
[1641199125237,0.79343605,47000.0,46989.0,0.009794]
[1641199125737,2.07853073,47007.0,46990.0,0.02128152]
[1641199126136,0.12063578,47006.0,46990.0,0.02128152]
[1641199126537,1.18449878,47006.0,46990.0,0.21028152]
[1641199126839,0.12063578,47005.0,46995.0,0.14033567]
[1641199127237,1.063829,47004.0,46995.0,0.14033567]
[1641199127936,0.42379246,47007.0,46995.0,0.14033567]
[1641199128139,1.063841,47006.0,46995.0,0.14033567]
[1641199128537,1.063841,47006.0,46995.0,0.32833567]
[1641199128837,0.12063453,47005.0,46995.0,0.32833567]
[1641199129340,1.063829,47004.0,46995.0,0.32833567]
[1641199129939,0.738308,47005.0,46995.0,0.32833567]
[1641199130140,1.063829,47003.0,46995.0,0.32833567]
[1641199130442,1.063829,47005.0,46995.0,0.14033567]
[1641199130640,0.73832,47006.0,46995.0,0.32833567]
[1641199130840,0.42379246,47007.0,46995.0,0.32833567]
[1641199131243,1.18444228,47006.0,46995.0,0.32833567]
[1641199131541,0.12063528,47005.0,46995.0,0.32833567]
[1641199131843,0.42379246,47007.0,46995.0,0.32833567]
[1641199132042,1.063829,47004.0,46995.0,0.14033567]
[1641199132241,1.063818,47006.0,46995.0,0.14033567]
[1641199132642,1.063841,47003.0,46995.0,0.32833567]
[1641199132843,1.063818,47006.0,46995.0,0.32833567]
[1641199133945,1.063818,47006.0,46995.0,0.14033567]
[1641199134549,1.063818,47006.0,46995.0,0.32933567]
[1641199134750,0.42551099,47003.0,46995.0,0.32933567]
[1641199135949,0.42551099,47003.0,46995.0,0.14033567]
[1641199136551,0.42551099,47003.0,46995.0,0.32833567]
[1641199137952,0.42551099,47003.0,46995.0,0.14033567]
[1641199138353,0.42551099,47003.0,46991.0,0.36204357]
[1641199138553,0.42551099,47003.0,46995.0,0.188]
[1641199138953,0.42551099,47003.0,46997.0,0.14033567]
[1641199140657,0.09048055,47002.0,46997.0,0.32633567]
[1641199142060,0.09048055,47002.0,46997.0,0.14033567]
[1641199142659,0.09048055,47002.0,46997.0,0.32833567]
[1641199144558,0.09048055,47002.0,46997.0,0.32933567]
[1641199145962,0.09048055,47002.0,46997.0,0.14033567]
[1641199146763,0.09048055,47002.0,46997.0,0.32933567]
[1641199147962,0.09048055,47002.0,46997.0,0.14033567]
[1641199148564,0.09048055,47002.0,46997.0,0.33333567]
[1641199150164,0.09048055,47002.0,46997.0,0.14033567]
[1641199150565,0.09048055,47002.0,46997.0,0.33233567]
[1641199151966,0.09048055,47002.0,46997.0,0.14033567]
[1641199152668,0.09048055,47002.0,46997.0,0.33233567]
[1641199154067,0.09048055,47002.0,46997.0,0.14033567]
[1641199154668,0.09048055,47002.0,46997.0,0.33233567]
[1641199154970,0.09048055,47002.0,46997.0,0.192]
[1641199155569,0.09048055,47002.0,46997.0,0.33233567]
[1641199155968,0.09048055,47002.0,46997.0,0.14033567]
[1641199156769,0.09048055,47002.0,46997.0,0.33233567]
[1641199158683,0.09048055,47002.0,46997.0,0.33133567]
[1641199160095,0.09048055,47002.0,46997.0,0.14033567]
[1641199160687,0.09048055,47002.0,46997.0,0.33033567]
[1641199162088,0.09048055,47002.0,46997.0,0.14033567]
[1641199162692,0.09048055,47002.0,46997.0,0.33233567]
[1641199163092,0.09048055,47002.0,46998.0,0.009794]
[1641199163298,0.09048055,47002.0,46998.0,0.087984]
[1641199164494,0.09048055,47006.0,46998.0,0.087984]
[1641199164693,0.09048055,47006.0,46998.0,0.198794]
[1641199165092,0.51596403,47006.0,46998.0,0.198794]
[1641199165297,1.063784,47005.0,46998.0,0.198794]
[1641199166194,1.063784,47005.0,46997.0,0.14033567]
[1641199166394,0.09048055,47004.0,46997.0,0.14033567]
[1641199166796,0.09048055,47004.0,46997.0,0.32733567]
[1641199167999,0.09048055,47005.0,46997.0,0.14033567]
[1641199168596,1.063807,47004.0,46997.0,0.14033567]
[1641199168797,1.063807,47004.0,46997.0,0.32833567]
[1641199169199,0.20128586,46998.0,46997.0,0.188]
[1641199169399,0.20697185,46994.0,46992.0,0.36204357]
[1641199169698,0.18,46993.0,46992.0,0.36204357]
[1641199169900,0.18,46993.0,46991.0,0.36204357]
[1641199170699,0.365,46993.0,46991.0,0.36204357]
[1641199170899,0.27048055,46992.0,46991.0,0.36204357]
[1641199171100,0.27048055,46992.0,46988.0,0.9013]
[1641199171501,0.15048055,46992.0,46988.0,0.9013]
[1641199171800,0.27048055,46992.0,46987.0,0.14033567]
[1641199172003,0.09048055,46991.0,46987.0,0.14033567]
[1641199172703,0.27448055,46991.0,46987.0,0.14033567]
[1641199173603,0.09048055,46990.0,46987.0,0.14033567]
[1641199174701,0.27648055,46990.0,46987.0,0.14033567]
[1641199175503,0.186,46990.0,46987.0,0.14033567]
[1641199176703,0.09048055,46989.0,46987.0,0.14033567]
[1641199178704,0.27648055,46989.0,46987.0,0.14033567]
[1641199179305,0.09048055,46988.0,46987.0,0.14033567]
[1641199180805,0.27548055,46988.0,46987.0,0.14033567]
[1641199181206,0.185,46988.0,46987.0,0.14033567]
[1641199182108,0.09048055,46992.0,46987.0,0.14033567]
[1641199182308,0.09048055,46988.0,46987.0,0.14033567]
[1641199183212,1.43770182,46990.0,46987.0,0.14033567]
[1641199184818,1.62270182,46990.0,46987.0,0.14033567]
[1641199186020,1.43770182,46990.0,46987.0,0.14033567]
[1641199186222,0.09048055,46989.0,46987.0,0.14033567]
[1641199186819,0.27748055,46989.0,46987.0,0.14033567]
[1641199187624,0.187,46989.0,46987.0,0.14033567]
[1641199188022,1.43770182,46990.0,46987.0,0.14033567]
[1641199188423,0.09048055,46988.0,46987.0,0.14033567]
[1641199189325,1.62370182,46990.0,46987.0,0.14033567]
[1641199190025,0.09048055,46989.0,46987.0,0.14033567]
[1641199190725,0.27648055,46989.0,46987.0,0.14033567]
[1641199191429,0.09048055,46988.0,46987.0,0.14033567]
[1641199192841,0.27648055,46988.0,46987.0,0.14033567]
[1641199193041,0.186,46988.0,46987.0,0.14033567]
[1641199193941,0.27648055,46988.0,46987.0,0.14033567]
[1641199194641,0.09048055,46988.0,46987.0,0.14033567]
[1641199194840,0.27548055,46988.0,46987.0,0.14033567]
[1641199196043,0.09048055,46988.0,46987.0,0.14033567]
[1641199196843,0.27548055,46988.0,46987.0,0.14033567]
[1641199198045,0.09048055,46988.0,46987.0,0.14033567]
[1641199198847,0.27648055,46988.0,46987.0,0.14033567]
[1641199200248,0.09048055,46988.0,46987.0,0.14033567]
[1641199200748,0.27548055,46988.0,46987.0,0.14033567]
[1641199202451,0.09048055,46988.0,46987.0,0.14033567]
[1641199202852,0.27548055,46988.0,46987.0,0.14033567]
[1641199204254,0.09048055,46988.0,46987.0,0.14033567]
[1641199204858,0.27548055,46988.0,46987.0,0.14033567]